[Event "44th Chess Olympiad Open 2022"]
[Site "Chennai"]
[Date "2022.08.08"]
[Round "10.30"]
[White "Lim, Zhuo Ren"]
[Black "Priasmoro, Novendra"]
[Result "0-1"]
[ECO "E62"]
[WhiteElo "2318"]
[BlackElo "2494"]
[Annotator "TA"]
[PlyCount "91"]
[EventDate "2022.07.29"]
[EventType "team-tourn"]
[EventCountry "IND"]
[SourceTitle "playchess.com"]
[Source "ChessBase"]
[SourceQuality "1"]
[WhiteTeam "Malaysia"]
[BlackTeam "Indonesia"]
[WhiteTeamCountry "MAS"]
[BlackTeamCountry "INA"]
[TimeControl "40/5400+30:1800+30"]

{[%evp 19,91,0,30,37,36,37,36,36,19,27,30,0,11,0,18,0,4,0,10,0,0,7,9,0,0,0,0,0,0,-112,-77,-104,-99,-98,29,-70,-122,-63,-112,-187,-167,-180,-172,-229,-145,-361,-174,-152,-33,-33,-33,-33,-39,-223,-221,-221,-222,-291,-291,-275,-268,-241,-239,-488,-488,-488,-480,-465,-461,-581,-576,-536,-501,-446]} 1. Nf3 {[%emt 0:00:05]} Nf6 {[%emt 0:00:09]} 2. g3 {[%emt 0:00:10]} g6 {[%emt 0:00:07]} 3. Bg2 {[%emt 0:00:08]} Bg7 {[%emt 0:00:05]} 4. d4 {[%emt 0:00:14]} O-O {[%emt 0:00:07]} 5. c4 {[%emt 0:00:06]} d6 {[%emt 0:00:15]} 6. O-O {[%emt 0:00:20]} Nc6 {[%emt 0:00:05]} 7. Nc3 {[%emt 0:00:12]} e5 {[%emt 0:00:08]} 8. dxe5 {[%emt 0:01:19]} dxe5 {[%emt 0:00:08]} 9. Bg5 {[%emt 0:00:16]} Be6 {[%emt 0:00:06]} 10. Qa4 {[%emt 0:02:31]} h6 {[%emt 0:00:07]} (10... Qc8 $5 {[%cal Rf6d7]}) 11. Rad1 {[%emt 0:00:40] E62: King's Indian: Fianchetto: 6...c6 and Panno Variation (6...Nc6) without ...a6.} Qe8 {[%emt 0:00:07]} 12. Bxf6 {[%emt 0:00:48]} Bxf6 {[%emt 0:00:06]} 13. Nd5 {[%emt 0:01:06] [#] White is slightly better.} Bd8 $146 {[%emt 0:00:22]} ({Predecessor:} 13... Bxd5 14. cxd5 Nd4 15. Qc4 b5 16. Qxc7 Nxe2+ 17. Kh1 e4 18. Nd2 Rc8 19. Qxa7 Bd4 {1-0 (27) Pech,J-Vetter,U DESC email 2013}) 14. Qb3 {[%emt 0:04:55]} Bc8 {[%emt 0:07:52]} 15. c5 {[%emt 0:05:12]} Kh7 {[%emt 0:02:04]} 16. e4 {[%emt 0:04:13]} Bg4 {[%emt 0:07:41]} 17. Qxb7 {[%emt 0:02:09]} Rb8 {[%emt 0:00:14]} 18. Qa6 {[%emt 0:00:09]} Rxb2 {[%emt 0:09:02]} 19. Rb1 {[%emt 0:05:07]} Rxb1 {[%emt 0:01:51]} 20. Rxb1 {[%emt 0:00:04]} Qe6 {[%emt 0:00:24]} 21. Ne1 {[%emt 0:06:52]} Nd4 $36 {[%emt 0:09:50][%mdl 2048] Black has some pressure.} 22. Qxe6 {[%emt 0:07:56]} Bxe6 {[%emt 0:00:43]} 23. Rb7 {[%emt 0:04:45]} c6 {[%emt 0:00:52]} 24. Rxa7 {[%emt 0:05:01]} cxd5 $17 {[%emt 0:03:00]} 25. exd5 {[%emt 0:01:54]} Bf5 {[%emt 0:00:05]} 26. Nf3 {[%emt 0:01:00]} Kg8 {[%emt 0:09:39]} (26... Bf6 $17 {...e4 is the strong threat.} 27. Nd2 Ne2+ 28. Kf1 Nc3) 27. g4 {[%emt 0:03:40]} (27. Nxe5 $11 Re8 28. f4) 27... Bxg4 $15 {[%emt 0:06:03]} 28. Nxe5 {[%emt 0:00:10]} Bf5 {[%emt 0:00:03]} 29. h3 {[%emt 0:05:26]} (29. d6 $17) 29... Bg5 {[%emt 0:01:51] White must now prevent ...Rb8.} 30. d6 {[%emt 0:05:32]} Re8 {[%emt 0:01:10]} 31. Ra8 {[%emt 0:04:33]} (31. Nf3 $142) 31... Kf8 {[%emt 0:06:58] And now ...Rxa8 would win.} 32. a4 $2 {[%emt 0:08:37]} (32. Rxe8+ $17 Kxe8 33. c6) 32... Bf6 {[%emt 0:02:54]} (32... Rxa8 $142 33. Bxa8 Bf4) 33. Ng4 $19 {[%emt 0:03:54]} Bxg4 {[%emt 0:08:00]} (33... Rxa8 $17 34. Bxa8 Bg5) 34. hxg4 $15 {[%emt 0:00:22]} Rxa8 {[%emt 0:00:03]} 35. Bxa8 {[%emt 0:00:06]} Be5 {[%emt 0:00:34] aiming for ...Ne6.} 36. Bd5 {[%emt 0:03:48] [#]} (36. a5 $1 $15) 36... Ne2+ $1 $19 {[%emt 0:04:04]} 37. Kf1 {[%emt 0:00:24] [#]} Nc3 {[%emt 0:00:03][%csl LRa4,LRd5]} 38. d7 {[%emt 0:01:23]} Bc7 {[%emt 0:03:53]} ({Don't go for} 38... Ke7 $2 39. Bxf7 Kxd7 40. Bxg6 $19) 39. Bc6 {[%emt 0:00:27]} Ke7 {[%emt 0:00:06]} 40. f3 {[%emt 0:03:37]} Na2 {[%emt 0:00:46]} 41. Ke2 $2 {[%emt 0:37:07]} (41. Bb5 {is a better defense.}) 41... Nc1+ {[%emt 0:30:33] Black is clearly winning.} 42. Ke3 {[%emt 0:03:18]} Nb3 {[%emt 0:00:06]} 43. f4 {[%emt 0:00:23]} Nxc5 {[%emt 0:00:05]} 44. f5 {[%emt 0:00:04]} gxf5 {[%emt 0:00:28]} 45. gxf5 {[%emt 0:00:03]} Nxd7 {[%emt 0:00:07]} 46. Kd4 {[%emt 0:00:34] Weighted Error Value: White=0.50/Black=0.20 (precise)} 0-1

[Event "44th Chess Olympiad Open 2022"]
[Site "Chennai"]
[Date "2022.08.08"]
[Round "10.31"]
[White "Bagheri, Amir"]
[Black "Delgado Ramirez, Neuris"]
[Result "1-0"]
[ECO "E97"]
[WhiteElo "2375"]
[BlackElo "2614"]
[Annotator "TA"]
[PlyCount "75"]
[EventDate "2022.07.29"]
[EventType "team-tourn"]
[EventCountry "IND"]
[SourceTitle "playchess.com"]
[Source "ChessBase"]
[SourceQuality "1"]
[WhiteTeam "Monaco"]
[BlackTeam "Paraguay"]
[WhiteTeamCountry "MNC"]
[BlackTeamCountry "PAR"]
[TimeControl "40/5400+30:1800+30"]

{[%evp 20,75,44,21,70,68,70,68,87,52,49,60,61,23,38,23,45,29,35,33,48,36,43,39,72,39,40,0,52,48,112,101,108,110,110,102,103,109,114,83,204,201,213,208,204,206,246,235,320,327,316,316,834,835,797,793,29996,270]} 1. d4 {[%emt 0:00:02]} Nf6 {[%emt 0:00:07]} 2. Nf3 {[%emt 0:00:04]} g6 {[%emt 0:00:08]} 3. c4 {[%emt 0:01:11]} Bg7 {[%emt 0:00:06]} 4. Nc3 {[%emt 0:00:14]} O-O {[%emt 0:00:09]} 5. e4 {[%emt 0:00:25]} d6 {[%emt 0:00:21]} 6. Be2 {[%emt 0:00:39]} e5 {[%emt 0:00:33]} 7. O-O {[%emt 0:11:46]} Nc6 {[%emt 0:00:08]} 8. d5 {[%emt 0:00:23]} Ne7 {[%emt 0:00:07]} 9. b4 {[%emt 0:00:04]} a5 {[%emt 0:00:10]} 10. bxa5 {[%emt 0:02:42]} Rxa5 {[%emt 0:00:16]} 11. a4 {[%emt 0:00:30]} c5 {[%emt 0:00:09] 11...Ne8 is becoming the main line. E97: King's Indian: Classical Main Line (6...e5 7 0-0 Nc6): 8 Be3 and 8 d5 Ne7, not 9 Ne1.} (11... Nh5 $11 {should be considered.}) 12. Rb1 $14 {[%emt 0:15:15]} Nd7 {[%emt 0:03:57]} 13. Bd2 {[%emt 0:06:39] [#] White is more active.} h6 $146 {[%emt 0:00:37] White is slightly better.} ({Predecessor:} 13... Ra6 14. Qc2 h6 15. Ne1 f5 16. f4 exf4 17. Bxf4 g5 18. Bd2 f4 19. Nb5 Ne5 {0-1 (57) Chojnowski,M (2002)-Dimic,P (2348) Calimanesti 2019}) 14. Ne1 {[%emt 0:01:35]} f5 {[%emt 0:01:58]} 15. exf5 {[%emt 0:00:40]} Nxf5 {[%emt 0:06:22]} 16. Ne4 {[%emt 0:01:01]} Ra6 {[%emt 0:00:10]} 17. Bd3 {[%emt 0:02:46]} Nf6 {[%emt 0:01:55]} 18. Nxf6+ {[%emt 0:03:27]} Qxf6 {[%emt 0:00:35]} 19. a5 {[%emt 0:00:27]} h5 {[%emt 0:05:43]} 20. Nc2 {[%emt 0:05:11]} Nh4 {[%emt 0:04:57]} 21. Rb3 {[%emt 0:03:26]} Bg4 {[%emt 0:02:29]} 22. Be2 {[%emt 0:05:09]} (22. f3 $5 {[%cal Rf3g4]} Bc8 23. Be4 $14) 22... Bc8 {[%emt 0:01:51]} 23. Bd3 {[%emt 0:00:10]} Rf7 {[%emt 0:15:52]} (23... Bg4 $11 24. f3 Bc8) 24. Be4 {[%emt 0:06:06]} Bg4 {[%emt 0:00:17]} (24... Nf5 $14) 25. Qc1 $16 {[%emt 0:01:16] [#] Hoping for Bg5.} Qe7 {[%emt 0:00:54]} 26. f3 {[%emt 0:05:09]} Bc8 {[%emt 0:00:13]} 27. Bg5 $36 {[%emt 0:02:55][%mdl 2048] White has strong initiative.} Bf6 {[%emt 0:00:04]} 28. Bxh4 {[%emt 0:00:38]} Bxh4 {[%emt 0:00:04]} 29. Bxg6 {[%emt 0:00:28][%cal Be4g6,Bg6h5,Bh5g4,Bg4c8][%mdl 32]} Rg7 {[%emt 0:00:03] Black cannot hold the game after this.} (29... Rf6 $16 {is a better defense.} 30. Bxh5 (30. Qh6 Bf5 $11) 30... Qh7) 30. Bxh5 $18 {[%emt 0:00:36]} Rxa5 {[%emt 0:00:11]} 31. Bg4 {[%emt 0:00:20]} Bg5 {[%emt 0:02:43]} ({Not} 31... Bxg4 32. fxg4 Ra4 33. Qh6 (33. Ne3 Bg5 $18)) 32. Qe1 {[%emt 0:00:38]} Ra2 {[%emt 0:00:38]} 33. Qe4 {[%emt 0:00:48]} ({Resist} 33. Bxc8 Rxc2 34. g3 (34. Bxb7 {leads to mate.} Be3+) 34... Rxc4 35. Rxb7 Qf8) 33... Qd8 {[%emt 0:03:06]} 34. Ra3 {[%emt 0:04:32]} Rxa3 {[%emt 0:02:10]} 35. Nxa3 {[%emt 0:00:07]} Qa5 $2 {[%emt 0:00:14]} (35... Be7 36. Bxc8 Qxc8) 36. Bxc8 {[%emt 0:04:56][%cal Of3f4] [#] Strongly threatening f4!} Qxa3 {[%emt 0:00:07]} 37. f4 {[%emt 0:00:11]} exf4 {[%emt 0:18:09]} 38. Qe8+ {[%emt 0:00:25] Weighted Error Value: White=0.07 (flawless) /Black=0.49} 1-0

[Event "44th Chess Olympiad Open 2022"]
[Site "Chennai"]
[Date "2022.08.08"]
[Round "10.32"]
[White "Meier, Georg"]
[Black "Al-Zendani, Zendan"]
[Result "1-0"]
[ECO "E06"]
[WhiteElo "2613"]
[BlackElo "2284"]
[Annotator "TA"]
[PlyCount "71"]
[EventDate "2022.07.29"]
[EventType "team-tourn"]
[EventCountry "IND"]
[SourceTitle "playchess.com"]
[Source "ChessBase"]
[SourceQuality "1"]
[WhiteTeam "Uruguay"]
[BlackTeam "Yemen"]
[WhiteTeamCountry "URU"]
[BlackTeamCountry "YEM"]
[TimeControl "40/5400+30:1800+30"]

{[%evp 12,71,-1,0,40,41,54,45,52,45,52,49,36,54,56,35,52,33,65,66,67,37,39,29,57,58,120,135,143,126,130,129,127,129,141,114,118,126,116,105,117,105,249,255,256,237,237,183,258,255,257,258,331,330,360,386,534,533,29986,29987,29987,29987]} 1. d4 {[%emt 0:00:02]} Nf6 {[%emt 0:00:06]} 2. Nf3 {[%emt 0:00:20]} e6 {[%emt 0:00:07]} 3. g3 {[%emt 0:00:16]} d5 {[%emt 0:00:26]} 4. c4 {[%emt 0:00:18]} Be7 {[%emt 0:00:25]} 5. Bg2 {[%emt 0:00:07]} O-O {[%emt 0:00:12]} 6. Nc3 {[%emt 0:00:11]} dxc4 {[%emt 0:02:44]} 7. Ne5 {[%emt 0:00:07]} a6 {[%emt 0:18:47] E06: Closed Catalan: Early deviations.} 8. O-O {[%emt 0:05:54]} Nd5 {[%emt 0:06:13]} 9. Nxc4 {[%emt 0:01:49]} Nc6 {[%emt 0:08:53] White is slightly better.} 10. e4 {[%emt 0:06:11]} Nxc3 {[%emt 0:05:00]} 11. bxc3 {[%emt 0:00:10][%cal Bb2c3,Bc3d4,Bd4d5,Bd5d6][%mdl 32]} b5 {[%emt 0:00:36]} 12. Ne3 {[%emt 0:01:07] [#]} Na5 $146 {[%emt 0:06:24]} ({Predecessor:} 12... e5 13. Bb2 Rb8 14. Re1 Re8 15. d5 Na5 16. a4 b4 17. cxb4 Bxb4 18. Rf1 c6 {1-0 (46) Sanabria Rangel,S (2187)-Barrientos Chavarriaga,S (2468) Medellin 2009}) 13. Qe2 {[%emt 0:06:59]} c5 {[%emt 0:06:50]} 14. Rd1 {[%emt 0:00:00]} cxd4 {[%emt 0:00:26]} 15. cxd4 {[%emt 0:00:00]} ({Of course not} 15. Rxd4 Qc7 $15) 15... Bb7 {[%emt 0:02:37]} 16. Bb2 {[%emt 0:00:00][%cal Bc1b2,Bb2c3,Bc3e1][%mdl 32]} Bg5 $1 {[%emt 0:03:07]} 17. f4 {[%emt 0:00:00]} Bf6 {[%emt 0:01:48]} 18. e5 {[%emt 0:00:00]} Bxg2 {[%emt 0:00:35]} (18... Be7 $14) 19. Kxg2 $16 {[%emt 0:00:00]} ({Reject} 19. Nxg2 $6 Be7 $11) 19... Be7 {[%emt 0:00:20][%cal Oa5c4]} 20. d5 {[%emt 0:00:00] Hoping for d6.} Qd7 {[%emt 0:11:24]} 21. Bc3 $36 {[%emt 0:08:04][%mdl 2048] White is really pushing.} b4 {[%emt 0:00:51]} 22. Be1 {[%emt 0:00:13]} Bc5 {[%emt 0:01:36]} 23. Rac1 {[%emt 0:05:08]} Rfc8 {[%emt 0:03:55]} 24. d6 {[%emt 0:00:23]} Nb7 {[%emt 0:10:12]} 25. Nf1 {[%emt 0:14:29][%cal Be3f1,Bf1d2,Bd2e4][%mdl 32] 0x0.001e3ce97150dp-1022s more active pieces.} a5 {[%emt 0:00:29]} 26. Nd2 {[%emt 0:00:07]} a4 {[%emt 0:01:12] This costs Black the game.} (26... Ba7 $16) 27. Ne4 $18 {[%emt 0:05:39]} b3 {[%emt 0:00:32] [#]} 28. axb3 {[%emt 0:03:21]} axb3 {[%emt 0:00:09] [#]} 29. Kh3 $1 {[%emt 0:03:03]} Ba3 {[%emt 0:05:42]} (29... Ra2 {keeps fighting.} 30. Qf3 b2) 30. Rb1 {[%emt 0:03:06]} b2 {[%emt 0:00:04]} 31. Bc3 {[%emt 0:00:20]} f5 {[%emt 0:03:14]} 32. exf6 {[%emt 0:03:29]} e5+ {[%emt 0:03:10]} 33. Kg2 {[%emt 0:08:06] Dancing on a razor blade.} Ra4 {[%emt 0:00:00][%cal Oa4e4]} 34. Bxe5 {[%emt 0:05:34]} Qc6 {[%emt 0:00:00] [#]} 35. Qg4 $1 {[%emt 0:00:23][%csl Ge5,Gf6][%cal Rg4g7]} Qxe4+ {[%emt 0:00:00]} 36. Kh3 {[%emt 0:00:07] Weighted Error Value: White=0.03 (flawless) /Black=0.45} 1-0

[Event "44th Chess Olympiad Open 2022"]
[Site "Chennai"]
[Date "2022.08.08"]
[Round "10.33"]
[White "Barcenilla, Rogelio"]
[Black "Lorenzana, Wilson Estuardo"]
[Result "1-0"]
[ECO "A26"]
[WhiteElo "2463"]
[BlackElo "2182"]
[Annotator "TA"]
[PlyCount "121"]
[EventDate "2022.07.29"]
[EventType "team-tourn"]
[EventCountry "IND"]
[SourceTitle "playchess.com"]
[Source "ChessBase"]
[SourceQuality "1"]
[WhiteTeam "Philippines"]
[BlackTeam "Guatemala"]
[WhiteTeamCountry "PHI"]
[BlackTeamCountry "GUA"]
[TimeControl "40/5400+30:1800+30"]

{[%evp 15,121,19,27,0,18,-4,-19,-31,-39,-42,-18,-29,-20,-43,-49,-46,0,-9,-11,-10,-10,-24,-22,-24,-24,-26,-25,-24,-24,-26,-25,-52,-47,-56,-48,-67,-64,-63,-56,-65,-65,-56,-55,-72,-49,-73,-73,-73,-73,-73,-73,-72,-72,-72,-54,-72,-23,-23,-14,-24,0,-24,0,0,40,2,2,2,18,18,19,2,2,13,6,0,1,0,0,0,0,0,0,0,0,0,0,0,0,0,64,41,56,19,265,0,61,0,108,118,538,449,1146,1075,1000,999,767,687]} 1. c4 {[%emt 0:00:13]} Nf6 {[%emt 0:00:18]} 2. Nc3 {[%emt 0:00:11]} g6 {[%emt 0:02:45]} 3. g3 {[%emt 0:00:05]} Bg7 {[%emt 0:00:12]} 4. Bg2 {[%emt 0:00:06]} O-O {[%emt 0:01:26]} 5. e4 {[%emt 0:00:05]} e5 {[%emt 0:01:46]} 6. Nge2 {[%emt 0:00:35]} Nc6 {[%emt 0:01:03]} 7. O-O {[%emt 0:00:14]} d6 {[%emt 0:02:04]} 8. d3 {[%emt 0:00:06]} Nd7 {[%emt 0:06:17]} 9. Nd5 {[%emt 0:08:04] 9.f4 is setting a new trend. A26: English Opening vs King's Indian with ...Nc6 and d3.} a5 {[%emt 0:01:37]} 10. Be3 {[%emt 0:01:32]} Nd4 {[%emt 0:03:34] [#]} 11. f4 $146 {[%emt 0:05:42] The position is equal.} ({Predecessor:} 11. Qd2 c6 12. Ndc3 Nc5 13. Rad1 a4 14. Bh6 Qa5 15. Bxg7 Kxg7 16. Nxd4 exd4 17. Ne2 Qxd2 18. Rxd2 {0-1 (38) Loos,U (2033)-Perske,T (1862) Germany 2011}) 11... c6 {[%emt 0:01:58]} 12. Ndc3 {[%emt 0:00:07]} f5 {[%emt 0:00:13][%cal Oa5a4]} 13. Qd2 {[%emt 0:00:44]} Nc5 {[%emt 0:04:49]} 14. exf5 {[%emt 0:01:46]} Bxf5 {[%emt 0:04:07]} 15. Ne4 {[%emt 0:01:38]} Nce6 {[%emt 0:09:10]} (15... Nxe2+ $15 16. Qxe2 exf4 17. Rxf4 Qe7) 16. Nxd4 {[%emt 0:08:36]} exd4 {[%emt 0:26:36]} 17. Bf2 {[%emt 0:00:16]} Nc5 {[%emt 0:00:54]} 18. Nxc5 {[%emt 0:00:53]} dxc5 {[%emt 0:00:07]} 19. h3 {[%emt 0:06:35]} h5 {[%emt 0:00:12] Inhibits g4.} 20. Rfe1 {[%emt 0:02:01]} Qd7 {[%emt 0:08:18]} 21. h4 {[%emt 0:01:42]} Kh7 {[%emt 0:01:33]} 22. Re2 {[%emt 0:01:48]} Bf6 {[%emt 0:03:59]} 23. Rae1 {[%emt 0:01:09]} a4 {[%emt 0:01:36]} 24. Kh2 {[%emt 0:06:08]} Kg7 {[%emt 0:01:04]} 25. Rb1 {[%emt 0:11:22]} Ra7 {[%emt 0:01:42]} 26. Rc1 {[%emt 0:19:43]} Rc8 {[%emt 0:00:20]} 27. Be4 {[%emt 0:01:43]} Bg4 {[%emt 0:00:34]} 28. Ree1 {[%emt 0:00:16]} b5 {[%emt 0:01:20]} 29. Rc2 {[%emt 0:01:55]} Qd6 {[%emt 0:01:33]} 30. b3 {[%emt 0:03:03]} b4 {[%emt 0:02:18]} 31. Rb2 {[%emt 0:01:31]} axb3 {[%emt 0:02:47]} 32. axb3 {[%emt 0:00:07]} Rca8 {[%emt 0:00:06]} 33. Reb1 {[%emt 0:00:43]} Ra6 {[%emt 0:00:45]} 34. Be1 {[%emt 0:02:48]} R8a7 {[%emt 0:02:09]} 35. Qg2 {[%emt 0:00:20]} Re7 {[%emt 0:05:35]} (35... Qe6 $17) 36. Bd2 $11 {[%emt 0:00:39]} Bf5 {[%emt 0:00:46]} 37. Re1 {[%emt 0:00:18]} Bg4 {[%emt 0:00:16]} 38. Bc1 {[%emt 0:00:27]} Ra1 {[%emt 0:00:08][%cal Of6h4]} 39. Ra2 {[%emt 0:03:38]} Ra7 {[%emt 0:01:51]} 40. Rxa7+ {[%emt 0:02:20]} Rxa7 {[%emt 0:00:05]} 41. Bxc6 {[%emt 0:30:13]} Re7 {[%emt 0:31:38]} 42. Be4 {[%emt 0:01:05]} Ra7 {[%emt 0:00:27]} 43. Kg1 {[%emt 0:00:00]} Qa6 {[%emt 0:00:00]} 44. f5 {[%emt 0:00:00]} gxf5 {[%emt 0:00:00]} 45. Bd5 {[%emt 0:00:00] [#] Qd2 is the strong threat.} Re7 $1 {[%emt 0:00:00]} 46. Qf2 {[%emt 0:00:00] Threatens to win with Rxe7+.} Qd6 {[%emt 0:00:00]} 47. Bf4 {[%emt 0:00:00]} Rxe1+ {[%emt 0:00:00]} 48. Qxe1 {[%emt 0:00:00]} Qe7 {[%emt 0:00:00]} 49. Qa1 {[%emt 0:00:00]} Kg6 {[%emt 0:00:00]} 50. Qa8 $40 {[%emt 0:00:00][%mdl 128] White mounts an attack.} Qe1+ {[%emt 0:00:00]} 51. Kh2 {[%emt 0:00:00] [#] White threatens Qg8+ and mate.} Qe2+ {[%emt 0:00:00]} 52. Bg2 {[%emt 0:00:00]} Kg7 {[%emt 0:00:00]} (52... Bg7 $11) 53. Bd6 {[%emt 0:00:00] White is more active.} (53. Qc6 $5 {[%cal Rf4d6]}) 53... Kh7 $1 {[%emt 0:00:00]} (53... Be7 54. Qa7 Kf6 55. Qxc5 $18 (55. Bxc5 Bxc5 56. Qxc5 Bf3 $11)) 54. Qd5 {[%emt 0:00:54]} Kg7 $2 {[%emt 0:00:00] Prevents Qf7+.} (54... Bg7 $11) 55. Qa8 $2 {[%emt 0:02:53]} (55. Qxc5 Bf3 56. Bf8+ Kg6) (55. Bxc5 $18 Qe5 56. Qxe5 (56. Bxb4 Qxd5 57. Bxd5 Be2 $18) 56... Bxe5 57. Bh3 (57. Bxb4 Bd1 $16)) 55... Kh7 $1 $14 {[%emt 0:00:00]} (55... Be7 56. Qa7 Kf6 57. Qxc5 $18 (57. Bxc5 Bxc5 58. Qxc5 Bf3 $14)) 56. Qc6 {[%emt 0:00:22]} (56. Qb7+ $14 Kg6 57. Qc6 (57. Bxc5 Bg7 $16)) 56... Kg7 {[%emt 0:00:13]} (56... Bg7 $1 $11) 57. Bxc5 $16 {[%emt 0:00:16] Black must now prevent Bd6.} Kf7 $2 {[%emt 0:07:10][%mdl 8192]} (57... Be5 $16 58. Qd7+ (58. Bxb4 {gets mated.} Bxg3+ 59. Kxg3 Qe5+ 60. Kf2 Qe3+ 61. Kf1 Be2+ 62. Ke1 Bf3+ 63. Kf1 Qe2+ 64. Kg1 Qxg2#) 58... Kg6 59. Qe8+ (59. Bxd4 Bxg3+ 60. Kg1 Qe1+ 61. Bf1 Bh2+ 62. Kh1 Qxf1+ $11) 59... Kh6 60. Qe6+ Kh7 61. Qf7+ Kh8 62. Qf8+ (62. Bxb4 {is a self mate.} Bxg3+ 63. Kxg3 Qe5+ 64. Kf2 Qe3+ 65. Kf1 Be2+ 66. Ke1 Bxd3+ 67. Kd1 Qe2+ 68. Kc1 Qc2#) 62... Kh7 63. Qf7+ (63. Bxb4 Bxg3+ 64. Kxg3 Qe5+ 65. Kf2 Qe3+ 66. Kf1 Be2+ 67. Ke1 Bxd3+ 68. Kd1 Qe2+ 69. Kc1 Qc2#) 63... Kh8 64. Qf8+ (64. Bxb4 Bxg3+ 65. Kxg3 Qe5+ 66. Kf2 Qe3+ 67. Kf1 Be2+ 68. Ke1 Bxd3+ 69. Kd1 Qe2+ 70. Kc1 Qc2#) 64... Kh7 65. Qe7+ (65. Bxb4 Bxg3+ 66. Kxg3 Qe5+ 67. Kf2 Qe3+ 68. Kf1 Be2+ 69. Ke1 Bxd3+ 70. Kd1 Qe2+ 71. Kc1 Qc2#) 65... Bg7 66. Bxb4 Qxd3) 58. Qd5+ $18 {[%emt 0:00:43] White is clearly winning.} Ke8 {[%emt 0:01:22]} (58... Kg7 $142 59. Bxd4 Bxd4) 59. Qa8+ {[%emt 0:01:58]} Kf7 {[%emt 0:00:34]} 60. Qf8+ {[%emt 0:00:19]} Kg6 {[%emt 0:00:19]} 61. Qg8+ {[%emt 0:00:28] Weighted Error Value: White=0.17 (very precise) /Black=0.35} 1-0

[Event "44th Chess Olympiad Open 2022"]
[Site "Chennai"]
[Date "2022.08.08"]
[Round "10.33"]
[White "Juarez Flores, Carlos A."]
[Black "Paragua, Mark"]
[Result "0-1"]
[ECO "D12"]
[WhiteElo "2335"]
[BlackElo "2461"]
[Annotator "TA"]
[PlyCount "64"]
[EventDate "2022.07.29"]
[EventType "team-tourn"]
[EventCountry "IND"]
[SourceTitle "playchess.com"]
[Source "ChessBase"]
[SourceQuality "1"]
[WhiteTeam "Guatemala"]
[BlackTeam "Philippines"]
[WhiteTeamCountry "GUA"]
[BlackTeamCountry "PHI"]
[TimeControl "40/5400+30:1800+30"]

{[%evp 14,64,-6,-24,12,12,8,-14,-7,-24,0,-20,-24,-55,-60,-53,-71,-116,-73,-147,-156,-180,-174,-177,-111,-119,-122,-159,-152,-214,-194,-212,-203,-197,-182,-189,-183,-178,-174,-173,-177,-206,-187,-203,-202,-268,-264,-260,-260,-354,-349,-29982,-29978]} 1. d4 {[%emt 0:00:04]} d5 {[%emt 0:00:09]} 2. c4 {[%emt 0:00:13]} c6 {[%emt 0:00:06]} 3. Nf3 {[%emt 0:00:17]} Nf6 {[%emt 0:00:09]} 4. e3 {[%emt 0:01:36]} Bf5 {[%emt 0:00:52]} 5. Qb3 {[%emt 0:01:36]} Qb6 {[%emt 0:02:27]} 6. Nc3 {[%emt 0:01:40]} e6 {[%emt 0:00:53]} 7. c5 {[%emt 0:02:51]} Qc7 {[%emt 0:00:34]} 8. Nh4 {[%emt 0:00:10]} Bg6 {[%emt 0:02:47] D12: Slav Defence: 3 Nf3 Nf6 4 e3 Bf5.} 9. Nxg6 {[%emt 0:02:32]} hxg6 {[%emt 0:00:06]} 10. h3 {[%emt 0:00:10]} Nbd7 {[%emt 0:02:52] The position is equal.} 11. Bd2 {[%emt 0:02:07]} Be7 {[%emt 0:02:00]} 12. Be2 {[%emt 0:00:57]} g5 {[%emt 0:02:11] [#]} 13. O-O-O $146 {[%emt 0:01:47]} ({Predecessor:} 13. Qd1 O-O 14. b4 b5 15. cxb6 axb6 16. O-O c5 17. bxc5 bxc5 18. Nb5 Qc6 19. dxc5 Nxc5 {0-1 (49) Hincu,O (2118)-Terbe,Z (2170) Tarvisio 2017}) 13... b6 {[%emt 0:00:13]} 14. cxb6 $1 {[%emt 0:01:18]} axb6 {[%emt 0:05:40]} 15. Kb1 {[%emt 0:08:17]} b5 $1 {[%emt 0:04:12] White must now prevent ...b4.} 16. Rc1 {[%emt 0:02:14]} (16. Qc2 $142) 16... Qa7 $17 {[%emt 0:02:15]} 17. Bxb5 {[%emt 0:00:23] [#]} Rb8 $1 {[%emt 0:00:11][%mdl 64] And now ...0-0 would win. Pin} (17... cxb5 18. Nxb5 Qb8 19. Nc7+ Kf8 20. Nxa8 Qxa8 21. Qb5 $14) 18. Rc2 {[%emt 0:08:56] Hoping for Qa4.} (18. Qa4 Qb6 19. Qa6 cxb5) 18... Qa8 {[%emt 0:16:04]} (18... cxb5 $19 19. Nxb5 Qb6) 19. Nxd5 {[%emt 0:05:10]} cxd5 {[%emt 0:00:09]} 20. f3 {[%emt 0:08:09] Inhibits Ne4.} O-O {[%emt 0:04:44]} 21. Qd3 {[%emt 0:02:26]} (21. Qa4 $17 {was called for.} Qxa4 22. Bxa4) 21... Nb6 $19 {[%emt 0:03:34]} 22. Rc7 {[%emt 0:04:02] [#]} Nc4 $1 {[%emt 0:07:04]} 23. Bxc4 {[%emt 0:01:53] aiming for Bb5.} Bd6 {[%emt 0:11:01][%mdl 64] Trapped Piece} ({Weaker is} 23... dxc4 24. Rxc4 Qb7 25. Qc2 $17) 24. Bxd5 {[%emt 0:00:35]} Nxd5 {[%emt 0:00:05] Really sharp!} 25. Rc2 {[%emt 0:01:12]} Bb4 {[%emt 0:00:36] Strongly threatening ...Bxd2.} 26. e4 {[%emt 0:01:40] [#]} Nf4 $36 {[%emt 0:05:03][%mdl 2048] Keeping White busy.} 27. Bxf4 {[%emt 0:00:42]} gxf4 {[%emt 0:00:04]} 28. Rhc1 {[%emt 0:04:04]} Rfd8 {[%emt 0:00:35]} 29. Qc4 {[%emt 0:09:11]} Be7 {[%emt 0:01:57]} 30. Rd1 {[%emt 0:06:22]} Qa7 {[%emt 0:03:54]} 31. Qc7 {[%emt 0:05:29]} Rb7 {[%emt 0:00:47]} ({But not} 31... Rxb2+ 32. Kxb2 Ba3+ 33. Ka1 Rxd4 34. Rb1 $18 (34. Qxa7 $2 {leads to mate.} Rxd1+)) 32. Qxf4 {[%emt 0:00:28]} (32. Qc4 $19) 32... Ra8 {[%emt 0:00:11] Weighted Error Value: White=0.46/Black=0.08 (flawless)} 0-1